bitfinex/quotes_ETHUSD_20250115
["timestamp","ask_amount","ask_price","bid_price","bid_amount"]
[1736953403511,0.8287,3345.2,3343.6,2.0]
[1736953403710,0.8287,3345.2,3343.7,0.256]
[1736953404003,0.8287,3345.2,3344.0,4.99035]
[1736953404203,0.8287,3345.2,3344.1,0.02989105]
[1736953404594,0.8287,3345.2,3344.6,2.98988]
[1736953404784,0.8287,3345.2,3344.4,2.0]
[1736953405122,0.8287,3345.2,3343.6,5.79936]
[1736953405280,0.8287,3345.2,3343.6,2.0]
[1736953405489,0.8287,3345.1,3343.7,0.256]
[1736953405710,0.8287,3345.1,3343.7,0.11459586]
[1736953405909,0.8287,3345.1,3343.7,3.10523586]
[1736953406122,0.8287,3345.1,3343.9,2.99051]
[1736953406416,0.8287,3345.1,3344.1,2.99033]
[1736953406616,0.8287,3345.1,3344.0,0.02989335]
[1736953407021,0.8287,3345.1,3344.1,35.0]
[1736953407325,0.8287,3345.8,3344.2,2.02989192]
[1736953407545,0.59338349,3345.6,3344.3,2.0]
[1736953407820,0.8287,3345.5,3343.8,2.0]
[1736953407993,0.8287,3345.4,3343.9,0.256]
[1736953408210,4.46150502,3345.6,3343.9,0.256]
[1736953408211,0.8287,3345.3,3344.0,0.02989564]
[1736953408530,0.8287,3345.3,3344.1,2.0]
[1736953408684,3.237496,3347.3,3343.9,0.256]
[1736953408685,0.8287,3346.5,3344.6,2.0]
[1736953409035,0.59506022,3345.7,3344.2,2.8086]
[1736953409237,0.8287,3345.6,3344.7,0.256]
[1736953409444,0.8287,3345.6,3344.8,0.02988998]
[1736953409586,0.8287,3345.6,3344.7,0.256]
[1736953410094,0.8287,3345.6,3344.1,35.0]
[1736953410302,0.8287,3345.6,3344.0,2.0]
[1736953410496,0.8287,3345.6,3344.1,0.29788999]
[1736953410716,0.8287,3345.6,3344.2,0.268]
[1736953410717,0.8047,3345.4,3344.2,0.268]
[1736953410912,0.8047,3344.7,3343.1,2.0]
[1736953411116,0.8047,3344.7,3343.2,0.29789716]
[1736953411298,0.8047,3344.7,3343.4,2.99096]
[1736953411627,0.61236583,3344.6,3343.2,0.268]
[1736953411787,0.8047,3344.5,3343.2,0.268]
[1736953411987,0.8047,3344.5,3343.3,0.0299002]
[1736953412225,0.8047,3344.5,3343.5,2.0]
[1736953412426,0.8047,3344.5,3343.6,0.02989552]
[1736953412926,0.8047,3344.5,3343.5,2.02989674]
[1736953413328,0.8047,3345.1,3344.2,2.0]
[1736953413533,0.8047,3345.1,3343.9,2.99049]
[1736953413534,1.40671008,3345.1,3343.9,2.99049]
[1736953413729,1.40671008,3345.1,3343.8,2.0]
[1736953414029,1.40671008,3345.1,3343.9,35.268]
[1736953414229,0.7814,3345.0,3344.0,0.268]
[1736953414808,0.7814,3345.0,3344.1,0.268]
[1736953415204,0.7814,3344.9,3344.1,0.268]
[1736953415415,0.7814,3344.8,3344.1,0.268]
[1736953416635,0.60830833,3344.3,3344.1,0.268]
[1736953416933,0.60735046,3344.7,3344.1,0.268]
[1736953417360,0.7814,3344.8,3344.1,0.268]
[1736953417651,1.36767728,3345.3,3344.3,2.99014]
[1736953417946,1.36767728,3345.3,3344.4,0.268]
[1736953418352,1.36767728,3345.3,3344.1,35.0]
[1736953418650,0.7814,3345.2,3344.5,0.268]
[1736953418935,0.7814,3345.2,3344.6,0.268]
[1736953419241,0.7814,3345.2,3344.7,0.268]
[1736953419408,0.7814,3345.2,3344.8,0.268]
[1736953419615,0.7814,3345.2,3344.9,0.268]
[1736953421155,0.14793697,3346.2,3344.9,0.268]
[1736953421156,0.7814,3346.5,3344.9,0.268]
[1736953421451,0.7814,3346.5,3345.0,0.0298842]
[1736953421617,0.7814,3346.5,3344.9,0.2978842]
[1736953421818,0.7814,3346.5,3344.9,35.2978842]
[1736953422151,0.7814,3345.5,3344.9,35.268]
[1736953422357,0.7814,3345.5,3344.9,0.268]
[1736953422728,0.7814,3345.5,3344.4,35.0]
[1736953422932,0.7814,3345.5,3344.5,0.268]
[1736953423145,0.7814,3345.5,3344.6,0.268]
[1736953423741,0.7814,3345.5,3343.8,35.7799]
[1736953423958,0.7814,3344.8,3343.9,0.268]
[1736953424144,0.7814,3344.8,3343.5,2.60395397]
[1736953424346,0.7814,3344.8,3343.8,2.99056]
[1736953424667,0.7814,3344.8,3343.6,3.25876]
[1736953424853,0.7814,3344.8,3343.7,3.02057474]
[1736953425540,0.7814,3344.8,3343.6,0.268]
[1736953425940,0.7814,3344.8,3343.7,0.02989558]
[1736953426335,0.7814,3344.8,3344.0,4.99042]
[1736953426578,0.7814,3344.8,3344.0,2.0]
[1736953426868,0.7814,3344.8,3344.0,4.99042]
[1736953427068,0.7814,3345.5,3344.4,2.0]
[1736953427285,0.7814,3345.5,3344.5,0.57988623]
[1736953427437,0.7814,3345.5,3344.1,3.7702]
[1736953427641,0.7814,3345.5,3344.2,0.02988944]
[1736953428041,0.7814,3345.5,3344.3,0.268]
[1736953428042,0.58588652,3345.2,3344.3,0.268]
[1736953428471,0.58588652,3345.2,3344.4,0.02989173]
[1736953428674,0.58588652,3345.2,3344.5,0.268]
[1736953428838,0.58588652,3345.2,3344.4,0.26980746]
[1736953429035,0.58588652,3345.2,3344.5,0.268]
[1736953429036,0.7814,3345.1,3344.5,0.268]
[1736953429265,0.7814,3345.1,3344.4,0.26980746]
[1736953429464,0.7814,3345.1,3344.6,0.268]
[1736953429665,0.758,3345.0,3344.4,0.26980746]
[1736953429879,0.758,3345.0,3344.5,0.26980746]
[1736953431359,0.758,3345.0,3344.6,0.26980746]
[1736953432375,0.758,3345.0,3344.7,0.26980746]
[1736953432786,3.74762,3345.0,3344.7,0.26980746]
[1736953433067,0.758,3345.0,3344.7,0.26980746]
[1736953433396,0.758,3345.0,3344.2,0.268]
[1736953433397,0.758,3345.0,3344.8,0.26980746]
[1736953434098,5.98962,3344.9,3344.8,0.26980746]
[1736953434300,5.98962,3344.9,3342.3,2.9919]
[1736953434301,0.7916,3344.4,3342.3,2.9919]
[1736953434501,0.7916,3344.3,3343.0,0.46881233]
[1736953434802,3.78204,3344.0,3343.0,0.46881233]
[1736953435002,0.7916,3343.8,3342.6,0.268]
[1736953435162,0.7916,3343.8,3342.6,0.73685888]
[1736953435463,4.30008045,3343.8,3342.6,0.73685888]
[1736953435664,4.29411789,3343.8,3342.6,0.73685888]
[1736953436479,3.50848045,3343.4,3342.6,0.46885888]
[1736953436802,3.50848045,3343.4,3342.5,2.154]
[1736953437006,3.50848045,3343.4,3342.5,2.422]
[1736953437228,0.60926533,3342.8,3342.5,2.422]
[1736953439219,0.60926533,3342.8,3342.1,0.46894394]
[1736953439424,0.60926533,3342.8,3342.4,0.255]
[1736953439624,0.60926533,3342.8,3342.2,0.255]
[1736953440032,0.7916,3342.7,3342.3,0.255]
[1736953440309,0.7916,3342.1,3340.5,2.155]
[1736953440619,4.60717326,3342.1,3340.8,0.46908266]
[1736953441110,6.84501713,3342.1,3340.8,0.46908266]
[1736953441313,0.7916,3341.9,3340.8,0.46908266]
[1736953441512,0.7916,3341.7,3340.6,0.255]
[1736953441812,0.76071733,3341.9,3340.7,0.255]
[1736953441813,0.7916,3341.5,3340.7,0.255]
[1736953442013,0.03731387,3341.4,3340.7,0.255]
[1736953442174,0.7916,3341.5,3340.7,0.28493291]
[1736953442370,0.7916,3341.5,3340.8,0.0299293]
[1736953442605,0.7916,3341.5,3340.9,0.255]
[1736953442933,0.60986417,3341.4,3340.9,0.255]
[1736953443485,0.60986417,3341.4,3340.5,2.155]
[1736953443719,0.60986417,3341.4,3340.8,0.255]
[1736953443901,3.81557326,3341.1,3340.1,0.46924006]
[1736953444212,0.7916,3341.0,3340.2,0.255]
[1736953444411,0.7916,3341.0,3340.2,0.28493637]
[1736953444572,0.7916,3341.0,3340.1,0.46924006]
[1736953444778,0.60909507,3340.3,3340.2,0.255]
[1736953445084,0.7731,3340.2,3339.1,3.80801]
[1736953445291,0.7731,3340.2,3339.6,0.46930727]
[1736953445586,0.7731,3340.2,3338.8,4.995]
[1736953445587,0.7731,3340.2,3339.7,0.255]
[1736953445792,0.7731,3340.0,3339.4,0.255]
[1736953446045,4.58867326,3340.0,3339.4,0.255]
[1736953446189,3.81557326,3339.5,3338.9,0.255]
[1736953446376,0.7731,3339.3,3338.9,0.255]
[1736953446780,0.7731,3339.3,3338.2,2.156]
[1736953446990,0.92073334,3339.3,3338.2,2.156]
[1736953447201,0.7731,3339.3,3338.2,2.156]
[1736953447405,0.7731,3338.9,3337.7,0.46956821]
[1736953447937,0.7731,3338.7,3337.7,0.46956821]
[1736953448080,3.81557326,3338.5,3337.8,0.255]
[1736953448916,3.81557326,3338.5,3337.9,0.255]
[1736953448917,0.7731,3338.3,3337.9,0.255]
[1736953449434,0.7731,3338.3,3338.0,0.255]
[1736953449801,0.03731387,3338.2,3337.8,0.255]
[1736953450017,0.7731,3338.3,3336.6,2.99697]
[1736953450334,0.7731,3338.3,3336.9,0.46967565]
[1736953450685,0.7731,3338.3,3337.0,0.255]
[1736953451113,0.60750171,3338.1,3337.1,0.02996128]
[1736953451323,0.7731,3338.3,3337.2,0.8164]
[1736953451538,0.7731,3338.3,3337.3,0.255]
[1736953451697,0.7731,3338.3,3337.3,3.25141]
[1736953452020,0.7731,3339.3,3337.9,2.99586]
[1736953452178,0.7731,3339.3,3337.4,0.55]
[1736953452497,0.7731,3339.3,3337.7,2.99601]
[1736953452699,0.7731,3339.3,3337.8,2.99596]
[1736953452700,0.59070995,3338.8,3337.8,2.99596]
[1736953452888,0.59070995,3338.8,3337.7,2.99606]
[1736953453413,0.7731,3339.3,3337.9,0.55]
[1736953453624,0.7731,3339.3,3338.3,3.54553]
[1736953453824,0.7731,3340.4,3339.4,2.99454]
[1736953454115,0.7731,3340.4,3338.3,3.0]
[1736953454116,0.60546271,3340.3,3339.5,0.28493681]
[1736953454318,0.60546271,3340.3,3339.6,0.255]
[1736953454791,0.60546271,3340.3,3339.7,0.255]
[1736953454997,0.7731,3340.2,3339.6,0.255]
[1736953455316,1.21404666,3340.2,3339.6,0.255]
[1736953455518,0.81041387,3340.2,3339.6,0.255]
[1736953455822,0.81041387,3340.2,3338.9,0.255]
[1736953455823,1.1720009,3340.1,3338.9,0.255]
[1736953456114,3.0,3339.9,3338.9,0.255]
[1736953456316,3.03151387,3339.8,3338.9,0.255]
[1736953456503,0.7731,3339.7,3337.9,0.8164]
[1736953456817,2.99455,3339.4,3337.3,0.8164]
[1736953457017,0.7731,3339.2,3337.3,0.8164]
[1736953457327,2.99501,3338.9,3337.4,0.255]
[1736953457538,0.7731,3338.7,3337.5,0.255]
[1736953457687,0.7731,3337.8,3337.4,0.255]
[1736953458538,0.7731,3337.8,3336.1,2.156]
[1736953458539,0.7731,3337.7,3336.7,0.255]
[1736953458698,2.99629,3337.5,3336.1,2.156]
[1736953458888,4.58867326,3336.8,3335.9,0.46975802]
[1736953459083,0.7731,3336.8,3335.6,0.5046]
[1736953459308,0.7731,3336.8,3335.7,0.255]
[1736953459511,0.2731,3336.8,3335.7,0.255]
[1736953459903,0.2731,3336.8,3335.8,0.255]
[1736953460100,4.06556926,3337.8,3335.8,0.255]
[1736953460101,3.81557326,3338.3,3335.9,0.0299735]
[1736953460426,3.81557326,3338.3,3336.1,2.0]
[1736953460594,3.0,3338.4,3336.2,0.02996128]
[1736953460793,0.58726561,3337.4,3336.0,0.255]
[1736953461121,0.58726561,3337.4,3336.1,0.02996444]
[1736953461328,3.81557326,3339.3,3337.0,2.99666]
[1736953461488,4.24713019,3339.3,3337.1,0.02995849]
[1736953461683,4.24713019,3339.3,3337.2,0.255]
[1736953461988,0.43155693,3339.3,3337.4,2.99632]
[1736953462213,0.43155693,3339.3,3336.9,2.99671]
[1736953462214,0.03731387,3339.2,3336.6,2.0]
[1736953462390,2.99555,3338.3,3336.9,0.255]
[1736953462596,0.8135,3338.2,3336.2,0.02995869]
[1736953462793,0.8135,3337.5,3336.1,0.255]
[1736953463022,0.8135,3337.5,3336.4,2.9972]
[1736953463221,0.8135,3337.5,3336.5,2.99713]
[1736953463421,0.8135,3337.5,3336.3,0.8159]
[1736953463422,0.8135,3337.5,3336.6,0.02996222]
[1736953463626,0.8135,3337.5,3336.4,2.9972]
[1736953463918,0.8135,3337.5,3336.6,0.02996222]
[1736953464118,0.58606674,3337.7,3336.6,0.02996226]
[1736953464319,0.58606674,3337.7,3336.5,0.5799617]
[1736953464521,0.8135,3338.1,3336.5,0.5799617]
[1736953464721,0.8135,3338.1,3336.3,0.8159]
[1736953464951,0.61345202,3338.0,3336.3,0.8159]
[1736953465156,0.61345202,3338.0,3336.8,0.55]
[1736953465315,2.99481,3339.1,3337.2,2.99652]
[1736953465516,0.76238833,3339.1,3337.4,2.99634]
[1736953465716,0.59851465,3338.5,3337.5,2.99619]
[1736953465915,0.8135,3339.2,3337.5,2.99619]
[1736953466135,0.8135,3339.2,3337.6,0.255]
[1736953466410,0.60589335,3338.6,3337.6,0.255]
[1736953466754,3.8135,3338.5,3337.6,0.2136]
[1736953466954,0.8135,3338.5,3337.6,0.2136]
[1736953467436,0.74146034,3338.4,3336.6,1.39585768]
[1736953467643,2.99545,3338.4,3337.3,0.255]
[1736953467815,0.8135,3338.5,3337.3,0.255]
[1736953468236,0.8135,3338.5,3337.4,0.02995993]
[1736953468438,0.60589335,3338.6,3337.4,3.81215]
[1736953468751,0.60589335,3338.6,3337.4,0.8159]
[1736953469152,0.60589335,3338.6,3337.3,0.255]
[1736953469453,2.99554,3338.3,3337.3,0.255]
[1736953469657,0.03731387,3338.2,3337.3,0.255]
[1736953469952,0.8135,3338.5,3337.3,0.255]
[1736953470756,3.0,3338.1,3337.3,0.255]
[1736953470915,2.99575,3338.1,3337.3,0.255]
[1736953471251,0.8135,3338.5,3337.3,0.255]
[1736953471552,0.8135,3338.5,3337.4,0.84586137]
[1736953471753,0.8135,3339.4,3337.5,0.55]
[1736953471927,0.8135,3339.4,3337.6,2.02994945]
[1736953472120,0.8135,3339.4,3337.9,2.99587]
[1736953472319,0.8135,3339.4,3338.1,2.99569]
[1736953472659,0.61261033,3339.0,3338.0,0.25]
[1736953475562,0.59257392,3339.5,3338.5,2.99529]
[1736953475759,3.14306511,3340.9,3338.5,2.99529]
[1736953475760,0.8127,3340.9,3338.9,2.99498]
[1736953476092,0.60727128,3340.4,3339.5,0.8036]
[1736953476261,0.60727128,3340.4,3339.6,0.25]
[1736953477033,0.60727128,3340.4,3339.7,0.25]
[1736953477865,0.8127,3340.9,3339.7,0.25]
[1736953478164,0.8127,3340.9,3339.8,0.02993405]
[1736953478364,0.8127,3340.9,3339.7,0.25]
[1736953479326,0.03731387,3340.8,3339.7,0.25]
[1736953479563,0.58555517,3340.6,3339.7,0.25]
[1736953479764,0.8127,3340.5,3338.7,0.8036]
[1736953479968,2.9941,3339.9,3338.8,0.25]
[1736953480159,3.0,3340.1,3338.8,0.25]
[1736953480362,0.8127,3340.3,3338.8,0.25]
[1736953480542,0.61004776,3340.1,3339.2,0.8036]
[1736953481268,0.85001387,3340.0,3338.7,0.8036]
[1736953481431,0.8127,3340.0,3338.7,0.83354607]
[1736953481631,0.61004776,3340.1,3338.9,2.99492]
[1736953481832,0.61004776,3340.1,3338.7,0.8036]
[1736953482035,0.61004776,3340.1,3338.8,0.25]
[1736953482983,3.0,3340.2,3338.8,0.25]
[1736953483182,2.99392,3340.1,3338.8,0.25]
[1736953483474,0.59811895,3339.4,3338.8,0.25]
[1736953484189,0.8127,3340.4,3338.9,0.57994352]
[1736953484333,0.8127,3340.4,3338.9,0.55]
[1736953485142,0.8127,3340.4,3339.0,0.02993889]
[1736953485470,0.15095537,3340.9,3339.3,0.8036]
[1736953485670,0.8127,3341.1,3339.3,0.8036]
[1736953485671,0.58732907,3340.0,3339.3,0.8036]
[1736953486174,0.58732907,3340.0,3338.6,0.55]
[1736953486357,0.58732907,3340.0,3338.7,0.25]
[1736953486558,0.62464294,3340.0,3338.7,0.25]
[1736953486772,3.0,3340.1,3338.7,0.25]
[1736953486932,0.69576696,3340.0,3338.7,0.25]
[1736953487274,3.0,3340.1,3338.8,0.25]
[1736953487447,0.61271952,3339.3,3338.8,0.25]
[1736953487656,1.42541952,3339.3,3338.5,0.8036]
[1736953487958,1.42541952,3339.3,3338.9,0.25]
[1736953488393,1.42541952,3339.3,3338.1,0.8036]
[1736953488394,4.42006952,3339.3,3338.5,0.25]
[1736953489037,1.86742647,3339.3,3338.1,0.8036]
[1736953489242,2.99488,3339.1,3338.1,0.25]
[1736953489472,2.9949,3339.1,3338.1,0.25]
[1736953489789,1.46273339,3339.3,3338.1,0.25]
[1736953490274,2.99509,3338.8,3337.5,0.7999]
[1736953490442,0.784,3338.7,3338.0,0.25]
[1736953491038,1.161909,3338.7,3337.5,0.7999]
[1736953491252,2.99552,3338.4,3336.7,0.7999]
[1736953491458,1.161909,3338.7,3336.8,0.25]
[1736953491652,0.784,3338.7,3336.9,0.02996066]
[1736953491867,0.784,3338.7,3336.9,3.02672066]
[1736953492069,0.58568602,3337.9,3337.2,0.7999]
[1736953492383,0.93737132,3339.4,3337.6,0.55]
[1736953492680,0.784,3339.4,3337.9,0.55]
[1736953492865,0.784,3340.2,3338.4,0.7999]
[1736953493076,0.377774,3340.1,3338.4,0.7999]
[1736953493277,0.59075475,3339.1,3338.4,0.7999]
[1736953493649,0.59075475,3339.1,3338.5,0.25]
[1736953495252,0.59075475,3339.1,3338.6,0.25]
[1736953496133,2.99493,3339.0,3338.6,0.25]
[1736953496256,0.59075475,3339.1,3338.6,0.25]
[1736953497852,3.03222387,3339.0,3337.2,0.7999]
[1736953498151,0.78446479,3339.1,3337.3,0.25]
[1736953498571,3.0,3339.0,3337.3,0.25]
[1736953498989,0.58859521,3337.8,3337.3,0.25]
[1736953499163,0.58859521,3337.8,3337.2,0.7999]
[1736953499361,0.58859521,3337.8,3337.3,0.244]
[1736953499886,0.58859521,3337.8,3337.2,0.7999]
[1736953500090,0.58859521,3337.8,3335.8,0.40070358]
[1736953500091,0.58859521,3337.8,3336.5,0.7999]
[1736953500249,0.58859521,3337.8,3336.6,2.02996184]
[1736953500451,0.784,3339.1,3337.5,0.7999]
[1736953500653,0.784,3339.9,3338.5,0.7999]
[1736953500893,0.784,3339.9,3337.8,2.0]
[1736953500894,0.784,3340.5,3338.7,0.7999]
[1736953501188,3.56838946,3341.7,3338.6,0.27394668]
[1736953501189,3.06839346,3341.7,3341.1,0.55]
[1736953501390,0.78780208,3342.2,3341.7,0.7999]
[1736953501563,0.78780208,3342.2,3341.8,0.55]
[1736953502076,0.78780208,3342.2,3341.7,0.7999]
[1736953502283,0.60275204,3342.6,3341.7,0.7999]
[1736953502669,0.64006591,3342.6,3341.8,0.243]
[1736953502990,0.60275204,3342.6,3341.2,0.7999]
[1736953503165,0.44155759,3342.5,3341.3,0.243]
[1736953503356,0.44155759,3342.5,3341.2,0.7999]
[1736953503560,3.02918387,3342.4,3341.2,0.7999]
[1736953503795,0.03731387,3342.4,3341.3,0.243]
[1736953504089,3.0,3342.1,3340.3,0.7999]
[1736953504261,0.60077344,3341.7,3340.4,0.243]
[1736953505005,0.60077344,3341.7,3340.3,0.7999]
[1736953505213,0.60077344,3341.7,3340.5,0.243]
[1736953505421,0.03731387,3341.6,3340.3,0.7999]
[1736953505577,0.03731387,3341.6,3339.7,0.7793]
[1736953505578,3.03731387,3341.6,3339.7,0.7793]
[1736953505765,2.9933,3340.8,3339.8,0.243]
[1736953505960,0.61204544,3340.4,3339.1,0.7793]
[1736953506201,0.61204544,3340.4,3339.2,0.243]
[1736953507143,0.61204544,3340.4,3339.3,0.243]
[1736953507329,4.62407326,3341.7,3339.6,2.0]
[1736953507510,2.99187,3342.4,3340.4,2.99359]
[1736953507711,2.99187,3342.4,3340.0,4.99398]
[1736953507712,2.99195,3342.3,3340.5,0.243]
[1736953507942,3.03731387,3342.2,3340.5,0.243]
[1736953508238,0.8085,3342.6,3340.5,0.243]
[1736953508541,0.8085,3342.6,3341.3,0.7793]
[1736953508843,0.8085,3343.6,3341.5,2.99266]
[1736953509023,3.46809437,3343.5,3341.5,2.99266]
[1736953509225,0.51444824,3343.5,3341.3,3.77213]
[1736953509426,0.60912032,3342.9,3341.3,0.7793]
[1736953509825,0.60912032,3342.9,3341.3,3.77208]
[1736953510038,0.60912032,3342.9,3341.3,0.7793]
[1736953510231,0.60912032,3342.9,3341.4,3.02264808]
[1736953510438,0.8085,3342.8,3341.3,0.7793]
[1736953510641,0.8085,3342.8,3341.4,0.243]
[1736953510842,0.60912032,3342.9,3341.4,0.243]
[1736953511010,0.60912032,3342.9,3341.5,2.99265]
[1736953511206,0.60912032,3342.9,3341.4,0.243]
[1736953511448,0.8285,3343.3,3342.1,0.7828]
[1736953511649,0.8285,3344.0,3342.2,0.02991057]
[1736953511945,0.8285,3344.0,3342.3,2.99194]
[1736953512132,0.8285,3344.0,3342.2,0.5799099]
[1736953512332,0.8285,3344.0,3342.9,0.7828]
[1736953512534,0.005,3344.1,3342.9,0.7828]
[1736953512535,0.59833413,3343.9,3343.0,0.243]
[1736953512911,0.005,3344.1,3343.0,0.243]
[1736953513245,0.61028395,3344.1,3343.1,0.243]
[1736953513447,0.8285,3343.7,3343.1,0.243]
[1736953513611,0.03731387,3343.6,3342.4,0.7828]
[1736953513953,2.99138,3343.0,3342.0,0.243]
[1736953514107,3.02854387,3343.1,3342.0,0.243]
[1736953514311,0.72172558,3343.1,3342.0,0.243]
[1736953514650,0.68441171,3343.1,3342.0,0.243]
[1736953515046,0.5877985,3342.7,3342.0,0.243]
[1736953516244,0.5877985,3342.7,3341.5,0.7828]
[1736953516557,0.5877985,3342.7,3341.6,0.27291997]
[1736953516558,1.4162985,3342.7,3341.6,0.27291997]
[1736953516769,1.4162985,3342.7,3341.7,0.243]
[1736953516770,0.03731387,3342.6,3341.7,0.243]
[1736953516969,2.99169,3342.6,3341.5,0.7828]
[1736953517288,1.4162985,3342.7,3341.7,0.243]
[1736953517437,2.15707835,3342.7,3341.7,0.243]
[1736953517647,2.99186,3342.4,3341.7,0.243]
[1736953517947,0.03731387,3342.3,3341.5,0.243]
[1736953518248,2.99227,3342.0,3341.0,0.243]
[1736953518652,2.99231,3341.9,3341.0,0.243]
[1736953518850,0.30296239,3341.9,3341.0,0.243]
[1736953519052,0.8285,3342.7,3341.0,0.243]
[1736953519387,2.99222,3342.0,3341.0,0.243]
[1736953519529,3.81557326,3341.3,3340.5,0.7828]
[1736953519730,3.81557326,3341.3,3341.1,0.243]
[1736953520666,3.81557326,3341.3,3340.5,0.7828]
[1736953520961,3.81557326,3341.3,3341.1,0.243]
[1736953521465,3.81557326,3341.3,3340.5,0.7828]
[1736953521644,2.99257,3341.6,3340.8,0.243]
[1736953521959,0.38583839,3341.5,3340.5,0.7828]
[1736953522168,0.58783882,3341.2,3340.4,0.243]
[1736953522576,2.99303,3341.1,3340.4,0.243]
[1736953522789,3.82167999,3340.5,3340.4,0.243]
[1736953523241,3.82167999,3340.5,3340.1,0.7828]
[1736953523440,3.82167999,3340.5,3340.1,1.0258]
[1736953524841,3.82167999,3340.5,3339.7,0.243]
[1736953525047,3.82167999,3339.8,3339.4,0.7828]
[1736953525246,3.82167999,3339.8,3339.1,0.243]
[1736953525457,3.82167999,3339.2,3339.1,0.243]
[1736953525636,0.8285,3339.7,3338.8,0.243]
[1736953525841,3.82278,3339.7,3338.8,0.243]
[1736953526276,0.60058331,3339.1,3338.8,0.243]
[1736953526499,2.99456,3339.4,3338.8,0.243]
[1736953526645,0.59362906,3339.2,3338.8,0.243]
[1736953527251,2.99484,3339.1,3338.4,0.7828]
[1736953527545,0.59362906,3339.2,3338.2,0.243]
[1736953527546,2.99501,3338.9,3338.2,0.243]
[1736953527963,2.9949,3339.0,3338.2,0.243]
[1736953528163,2.9953,3338.6,3337.5,0.71213688]
[1736953528360,2.99537,3338.5,3337.5,0.71213688]
[1736953528777,0.86581387,3338.9,3337.5,0.71213688]
[1736953528778,2.9953,3338.6,3337.5,0.71213688]
[1736953529076,0.6123336,3337.9,3337.5,0.71213688]
[1736953529444,0.6123336,3337.9,3337.5,0.243]
[1736953529646,3.6082236,3337.9,3337.5,0.243]
[1736953529976,2.99599,3337.8,3336.9,0.7828]
[1736953530282,3.6123336,3337.9,3336.9,1.0268]
[1736953530596,3.6123336,3337.9,3336.9,0.7828]
[1736953530739,0.6123336,3337.9,3337.0,0.244]
[1736953530937,0.6123336,3337.9,3337.0,3.82167999]
[1736953531203,0.8285,3338.9,3337.5,3.82167999]
[1736953531372,0.15386124,3339.2,3337.6,0.02995584]
[1736953531550,0.59986391,3338.5,3337.5,3.82167999]
[1736953532091,0.59986391,3338.5,3337.7,35.0]
[1736953532461,0.59986391,3338.5,3337.8,0.0525776]
[1736953532641,3.59524391,3338.5,3337.8,0.0525776]
[1736953532960,0.59986391,3338.5,3337.8,0.0525776]
[1736953533170,0.59986391,3338.5,3337.9,0.7984]
[1736953533464,0.59986391,3338.5,3338.0,0.05265634]
[1736953533669,0.03731387,3338.4,3338.0,0.05265634]
[1736953533883,0.7539,3339.3,3338.0,0.05265634]
[1736953534069,0.7746,3340.2,3338.1,0.579953]
[1736953534240,2.99418,3339.9,3338.3,1.3802]
[1736953534445,0.60736003,3339.0,3338.4,0.29645637]
[1736953534665,0.60736003,3339.0,3338.5,35.0]
[1736953535068,0.60736003,3339.0,3338.6,0.05243298]
[1736953535678,3.24292,3341.3,3338.5,4.40162808]
[1736953535880,0.14720873,3340.6,3338.8,0.8302]
[1736953536081,2.99409,3340.0,3339.4,0.2496]
[1736953536267,2.99414,3339.9,3339.4,0.2496]
[1736953536467,0.59068717,3339.5,3339.4,0.2496]
[1736953536874,6.58514717,3339.5,3339.4,0.30159234]
[1736953537069,8.32141627,3339.5,3339.4,0.30159234]
[1736953537274,8.32141627,3339.5,3339.4,0.00387733]
[1736953537490,8.32141627,3339.5,3339.4,7.33e-06]
[1736953538550,8.32141627,3339.5,3337.9,0.244]
[1736953538551,3.0,3338.4,3337.9,0.244]
[1736953538869,2.99546,3338.4,3337.9,0.244]
[1736953539275,2.99546,3338.4,3337.5,0.8302]
[1736953539276,2.99564,3338.2,3337.5,0.8302]
[1736953539475,2.99545,3338.4,3337.5,0.8302]
[1736953539785,2.99555,3338.3,3337.6,0.05048014]
[1736953540207,0.03731387,3338.5,3337.6,0.05048014]
[1736953540408,2.9958,3338.0,3337.6,0.05048014]
[1736953540613,6.97297916,3338.7,3337.4,0.244]
[1736953540815,6.97297916,3338.7,3337.5,0.244]
[1736953540816,3.82509701,3338.7,3337.5,0.244]
[1736953541015,3.7746,3338.6,3337.5,0.244]
[1736953541225,0.60625691,3338.0,3337.7,0.8302]
[1736953541573,3.76951,3339.0,3337.8,0.05045675]
[1736953541908,0.58724202,3338.3,3337.9,0.05044505]
[1736953542309,0.58724202,3338.3,3337.9,0.244]
[1736953542805,0.58724202,3338.3,3337.7,0.8302]
[1736953542999,0.58724202,3338.3,3337.8,0.244]
[1736953543816,0.58724202,3338.3,3337.7,1.0742]
[1736953544335,3.58278202,3338.3,3337.6,0.244]
[1736953544494,2.99591,3337.9,3337.3,0.8302]
[1736953544833,3.0,3337.9,3337.8,0.7504]
[1736953545125,5.99589,3337.9,3337.8,0.7504]
[1736953545419,0.7746,3338.0,3337.8,0.7504]
[1736953545981,2.99589,3337.9,3337.8,0.7504]
[1736953546179,2.99634,3337.5,3336.9,3.0161]
[1736953546424,6.82157701,3337.3,3336.9,3.0161]
[1736953546606,2.99661,3337.1,3337.0,0.0516227]
[1736953546803,2.99661,3337.1,3336.9,3.0161]
[1736953547009,3.0,3337.2,3336.9,3.0161]
[1736953547308,5.99652,3337.2,3336.9,3.0161]
[1736953547824,3.0,3337.2,3336.9,2.16609986]
[1736953548983,3.03731387,3337.2,3336.9,2.16609986]
[1736953549186,3.0,3337.2,3336.9,2.16609986]
[1736953549586,0.61038298,3337.0,3336.9,2.16609986]